Cogmind - Beta 13 @@@ ROGUE MODE // 2024.05.23 @ 12:32:39 Player: KingCain Result: Destroyed by P-60 Hacker with Shock Rifle Performance ------------- Evolutions (3) 1500 Regions Visited (6) 1200 Robots Destroyed (28) 140 Value Destroyed (499) 499 Prototype IDs (5) 100 Alien Tech Used (0) 0 Bonus (180) 180 TOTAL SCORE: 3619 Bonus ------- Follower Combat Kills 42 Aligned with FarCom 300 Friendly Fire -162 Cogmind --------- Core Integrity 0/700 Matter 89/300 Energy 310/310 System Corruption 8% Temperature Cool (0) Movement Core (200) Ox3 Location -7/Factory Parts ------- > --- POWER (2) -------- Heavy Deuterium Engine > --- PROPULSION (6) --- (None) > --- UTILITY (2) ------ (None) > --- WEAPON (3) ------- (None) > --- INVENTORY (5) ---- Flight Unit Flight Unit Cesium-ion Thruster Katana Peak State ------------ > --- POWER ------------ Light Ion Engine Heavy Ion Engine > --- PROPULSION ------- Wheel Wheel Wheel Wheel Wheel > --- UTILITY ---------- Large Storage Unit Supersonic Drone Bay > --- WEAPON ----------- Bore Cannon Field Lobotomy Kit > --- INVENTORY -------- Wheel Flight Unit Flight Unit Flight Unit Flight Unit Flight Unit Cesium-ion Thruster High-capacity Battery Signal Interpreter Medium Laser Rocket Launcher [Rating: 34] Favorites ----------- Power Light Ion Engine Engine Light Ion Engine Power Core Light Nuclear Core Propulsion Wheel Wheel Wheel Hover Unit Hover Unit Flight Unit VTOL Module Utility Large Storage Unit Device Supersonic Drone Bay Storage Large Storage Unit Weapon Bore Cannon Energy Gun Small Laser Ballistic Gun Light Assault Rifle Ballistic Cannon Bore Cannon Launcher Grenade Launcher Special Weapon Field Lobotomy Kit Build | -11 -10 -10 -10 -9 -8 -7 ------- Run | Yrd Mat Min Exi Min Mat Fac Slots Evolved 6 | . . . . . 4 2 Power 1 | . . . . . 1 . Propulsion 4 | . . . . . 3 1 Utility . | . . . . . . . Weapon 1 | . . . . . . 1 Parts Attached 49 | 11 6 4 4 1 6 17 Power 7 | 1 2 . . 1 1 2 Engine 6 | 1 2 . . 1 1 1 Core 1 | . . . . . . 1 Reactor . | . . . . . . . Propulsion 25 | 6 2 3 . . 4 10 Treads . | . . . . . . . Leg . | . . . . . . . Wheel 13 | 6 . 3 . . 4 . Hover 2 | . 2 . . . . . Flight 10 | . . . . . . 10 Utility 7 | 2 1 . 3 . . 1 Device 3 | 1 . . 1 . . 1 Storage 4 | 1 1 . 2 . . . Processor . | . . . . . . . Hackware . | . . . . . . . Protection . | . . . . . . . Artifact . | . . . . . . . Weapon 10 | 2 1 1 1 . 1 4 Energy Gun 1 | 1 . . . . . . Energy Cannon . | . . . . . . . Ballistic Gun 3 | 1 . . . . . 2 Ballistic Cannon 1 | . . 1 . . . . Launcher 4 | . 1 . . . 1 2 Special Weapon 1 | . . . 1 . . . Impact Weapon . | . . . . . . . Slashing Weapon . | . . . . . . . Piercing Weapon . | . . . . . . . Special Melee Weapon . | . . . . . . . Unidentified Prototypes 5 | . . . 3 . 1 1 Parts Lost 21 | . 1 . . . 1 19 Power 4 | . 1 . . . . 3 Propulsion 10 | . . . . . . 10 Utility 2 | . . . . . . 2 Weapon 5 | . . . . . 1 4 Highest Loss Streak 8 | . 1 . . . 1 8 To Critical Strikes . | . . . . . . . Average Slot Usage (%) 91 | . 99 99 99 100 97 46 Engine 13 | . 14 14 14 14 16 5 Wheel 24 | . 21 11 28 28 44 . Hover 1 | . 6 16 . . . . Flight 3 | . . . . . . 21 Device 10 | . 14 14 10 14 9 5 Storage 12 | . 14 14 17 14 9 1 Ballistic Gun 7 | . 14 14 8 . . 8 Ballistic Cannon 9 | . . 4 14 14 9 2 Launcher 2 | . 13 8 . . 3 . Special Weapon 4 | . . . 5 14 5 . Naked Turns 3 | . . . . . . 3 Heaviest Build 49 | 11 28 34 44 41 49 41 Greatest Support 50 | 32 20 20 20 20 50 22 Greatest Overweight (x) 4 | . 4 2 2 2 1 3 Average Overweight (x) 1 | . . 1 1 2 . . Largest Inventory Capacity 15 | 8 15 15 15 15 15 15 Average Capacity 13 | 7 12 15 14 15 15 7 Most Carried 15 | 7 10 12 13 15 14 11 Average Carried 9 | 4 8 10 11 14 11 4 Final Capacity 15 | 8 15 15 15 15 15 5 Final Carried 15 | 7 10 11 13 15 11 4 Class Distribution -------------------- 81% | Mutant 14% | Scavenger-Mutant 4% | Scavenger-Sprinter Dominant Class ---------------- Mutant | -10/Materials Mutant | -10/Mines Mutant | -10/Exiles Mutant | -9/Mines Scavenger-Mutant | -8/Materials Mutant | -7/Factory Resources | -11 -10 -10 -10 -9 -8 -7 ----------- Run | Yrd Mat Min Exi Min Mat Fac Matter Collected 790 | 333 96 43 . 77 159 82 Remotely 263 | 124 96 43 . . . . Salvage Created 619 | 215 96 32 . 33 158 85 Parts 64 | 21 8 11 . 6 9 9 Haulers Intercepted 1 | . . . . . 1 . Recyclers Shooed . | . . . . . . . Parts Field Recycled . | . . . . . . . Retrieved Matter . | . . . . . . . Parts Self-Destructed . | . . . . . . . Prevented . | . . . . . . . Kills | -11 -10 -10 -10 -9 -8 -7 ------- Run | Yrd Mat Min Exi Min Mat Fac Combat Hostiles Destroyed 19 | . 3 8 . 2 2 4 Melee 2 | . . . . 1 . 1 Guns 2 | . . 1 . . . 1 Cannons 1 | . . . . 1 . . AOE 14 | . 3 7 . . 2 2 Classes Destroyed 9 | 3 3 2 . . 1 . Worker 1 | 1 . . . . . . Builder 2 | . 1 . . . 1 . Tunneler 6 | 5 . 1 . . . . Hauler 1 | . . . . . 1 . Recycler 1 | 1 . . . . . . Watcher 2 | . 1 . . . 1 . Swarmer 9 | . . 3 . 2 . 4 Grunt 6 | . 3 . . . 3 . Assembled 5 | . . 5 . . . . Best Kill Streak 7 | 4 2 7 . 2 4 3 Combat Bots Only 6 | . 2 6 . 2 2 3 Max Kills in Single Turn 3 | 1 2 3 . 1 2 2 Gunslinging . | . . . . . . . Exploded 3 | . 2 3 . . 1 2 Melee 1 | . . . . 1 . 1 Uniques/NPCs Destroyed . | . . . . . . . Combat | -11 -10 -10 -10 -9 -8 -7 -------- Run | Yrd Mat Min Exi Min Mat Fac Hostile Shots Fired 239 | . 13 10 . 17 23 176 Missed 76 | . 5 1 . 4 8 58 Damage Taken 2474 | . 126 152 . 108 298 1790 Core 805 | . 23 25 . 10 41 706 Absorbed by Shields . | . . . . . . . Core Remaining (%) 89 | 100 . . . 76 92 . Volleys Fired 77 | 23 8 9 5 3 12 17 Largest 2 | 2 2 2 2 2 2 1 Hottest 93 | 60 50 50 77 57 93 33 Shots Fired 134 | 45 16 18 10 6 22 17 Gun 83 | 45 8 9 5 . . 16 Cannon 20 | . . . 5 3 12 . Launcher 26 | . 8 9 . . 8 1 Special 5 | . . . . 3 2 . Kinetic 81 | 23 8 9 10 3 12 16 Thermal 22 | 22 . . . . . . Explosive 26 | . 8 9 . . 8 1 Electromagnetic . | . . . . . . . Robot Hit Streak 6 | 6 3 4 . 5 3 3 Robot Miss Streak 3 | 2 2 3 . 1 3 2 Penetration Max 1 | . . . . . 1 . Secondary Targets . | . . . . . . . Shots Hit Robots 65 | 26 8 9 . 2 10 10 Core Hits 63 | 11 9 18 . 3 9 13 Critical Kills . | . . . . . . . Critical Parts Destroyed 2 | . . . . 1 1 . Critical Strikes 2 | . . . . 1 1 . Destroy 2 | . . . . 1 1 . Melee Attacks . | . . . . . . . Impact . | . . . . . . . Slashing . | . . . . . . . Piercing . | . . . . . . . Sneak Attacks . | . . . . . . . Combat Hostiles . | . . . . . . . Follow-up Attacks . | . . . . . . . Damage Inflicted 2227 | 243 485 564 . 54 485 396 Guns 470 | 243 32 31 . . . 164 Cannons 138 | . . . . 44 94 . Explosions 1539 | . 453 533 . . 382 171 Melee . | . . . . . . . Ramming 80 | . . . . 10 9 61 Kinetic 469 | 104 32 31 . 44 94 164 Thermal 139 | 139 . . . . . . Explosive 1539 | . 453 533 . . 382 171 Electromagnetic . | . . . . . . . Impact . | . . . . . . . Slashing . | . . . . . . . Piercing . | . . . . . . . Highest Corruption 8 | . . . . . . 8 Average Corruption 3 | . . . . . . 3 Corruption Purged . | . . . . . . . Corruption Blocked . | . . . . . . . Effects 7 | . . . . . . 7 Message Errors 3 | . . . . . . 3 Heat Flow Errors 1 | . . . . . . 1 Energy Discharges 1 | . . . . . . 1 Parts Fused 1 | . . . . . . 1 Data Loss (major) 1 | . . . . . . 1 Overload Shots . | . . . . . . . Overflow Damage 21 | . . . . . 17 4 Projectiles 12 | . . . . . 12 . Explosions 9 | . . . . . 5 4 Melee . | . . . . . . . Knockbacks 1 | . . . . . 1 . Impact . | . . . . . . . Kinetic 1 | . . . . . 1 . Secondary . | . . . . . . . Self-Inflicted Damage 182 | . 30 23 . 4 77 48 Shots 7 | . 1 3 . . 2 1 Rammed 38 | . . . . 5 1 32 Targets Rammed 38 | . . . . 5 1 32 Kicked . | . . . . . . . Crushed . | . . . . . . . Highest Temperature 261 | 60 41 50 68 . 261 100 Average Temperature 50 | 23 18 22 31 . 120 41 Received Heat Transfer 259 | . 57 40 . . 126 36 Effects 1 | . . . . . 1 . Energy Bleed 1 | . . . . . 1 . Siege Activations . | . . . . . . . Robots Corrupted . | . . . . . . . Combat Hostiles . | . . . . . . . Parts Fried . | . . . . . . . Impact Corruptions . | . . . . . . . Robots Melted . | . . . . . . . Combat Hostiles . | . . . . . . . Parts Melted . | . . . . . . . Heat Transferred 325 | 325 . . . . . . Parts Sabotaged . | . . . . . . . Parts Stolen . | . . . . . . . Parts Stripped . | . . . . . . . Power Chain Reactions . | . . . . . . . Alert | -11 -10 -10 -10 -9 -8 -7 ------- Run | Yrd Mat Min Exi Min Mat Fac Peak Influence 197 | 35 165 179 . 74 197 137 Initial 84 | . 22 64 . . 28 84 Average 77 | 19 101 141 . 55 76 89 Maximum Alert Level . | . . . . . . . Low Security (%) 100 | 100 100 100 . 100 100 100 Level 1 . | . . . . . . . Level 2 . | . . . . . . . Level 3 . | . . . . . . . Level 4 . | . . . . . . . Level 5 . | . . . . . . . High Security . | . . . . . . . Max Security . | . . . . . . . Squads Dispatched 5 | . 1 . . . 3 1 Investigation 1 | . . . . . 1 . Extermination 1 | . . . . . . 1 Reinforcement 3 | . 1 . . . 2 . Assault . | . . . . . . . Garrison . | . . . . . . . Intercept . | . . . . . . . Searches Triggered . | . . . . . . . Construction Impeded . | . . . . . . . Haulers Reinforced . | . . . . . . . Active Scanning Responses . | . . . . . . . Cargo Convoy Interrupts . | . . . . . . . Stealth | -11 -10 -10 -10 -9 -8 -7 --------- Run | Yrd Mat Min Exi Min Mat Fac Distress Signals 3 | . 1 1 . . . 1 Communications Jammed . | . . . . . . . Distress Signals . | . . . . . . . Times Spotted 43 | . 5 8 . 4 17 9 Peak Tracking Total 8 | . 2 5 . 4 8 4 Tactical Retreats 2 | . . . . . . 2 Traps | -11 -10 -10 -10 -9 -8 -7 ------- Run | Yrd Mat Min Exi Min Mat Fac Traps Triggered 1 | . . . . . . 1 Indirectly . | . . . . . . . Trap Hack Attempts . | . . . . . . . Triggered . | . . . . . . . Disarmed . | . . . . . . . Reprogrammed . | . . . . . . . Reused . | . . . . . . . Traps Extracted . | . . . . . . . Installed . | . . . . . . . Triggered . | . . . . . . . Machines | -11 -10 -10 -10 -9 -8 -7 ---------- Run | Yrd Mat Min Exi Min Mat Fac Machines Disabled 4 | . 1 . 1 . 2 . Max in Single Turn 1 | . 1 . 1 . 1 . Machines Repaired . | . . . . . . . Machines Dismantled . | . . . . . . . Machines Sabotaged . | . . . . . . . Overloaded Fab Kills . | . . . . . . . Hacking | -11 -10 -10 -10 -9 -8 -7 --------- Run | Yrd Mat Min Exi Min Mat Fac Machines Accessed 3 | . 1 . . . 2 . Terminals 2 | . 1 . . . 1 . Fabricators . | . . . . . . . Repair Stations . | . . . . . . . Recycling Units 1 | . . . . . 1 . Scanalyzers . | . . . . . . . Garrison Access . | . . . . . . . Total Hacks 6 | . 1 . . . 5 . Successful 4 | . 1 . . . 3 . Failed 2 | . . . . . 2 . Catastrophic 2 | . . . . . 2 . Database Lockouts . | . . . . . . . Manual 2 | . . . 2 . . . Terminals 3 | . 1 . . . 2 . Fabricators . | . . . . . . . Repair Stations . | . . . . . . . Recycling Units 3 | . . . . . 3 . Scanalyzers . | . . . . . . . Garrison Access . | . . . . . . . Terminal Hacks 1 | . 1 . . . . . Record 1 | . 1 . . . . . Fabricator Hacks . | . . . . . . . Repair Station Hacks . | . . . . . . . Recycling Unit Hacks 3 | . . . . . 3 . Recycle Component 2 | . . . . . 2 . Retrieve Matter 1 | . . . . . 1 . Scanalyzer . | . . . . . . . Garrison Access Hacks . | . . . . . . . Unauthorized Hacks . | . . . . . . . Terminals . | . . . . . . . Fabricators . | . . . . . . . Repair Stations . | . . . . . . . Recycling Units . | . . . . . . . Scanalyzers . | . . . . . . . Garrison Access . | . . . . . . . Data Cores Recovered . | . . . . . . . Used . | . . . . . . . Hacking Detections 2 | . . . . . 2 . Full Trace Events 1 | . . . . . 1 . Feedback Events . | . . . . . . . Feedback Blocked . | . . . . . . . Robot Schematics Acquired . | . . . . . . . Robots Built . | . . . . . . . Authchips . | . . . . . . . Time . | . . . . . . . Total Robot Build Rating . | . . . . . . . Part Schematics Acquired . | . . . . . . . Parts Built . | . . . . . . . Authchips . | . . . . . . . Time . | . . . . . . . Total Part Build Rating . | . . . . . . . Parts Repaired . | . . . . . . . Time . | . . . . . . . Parts Recycled 2 | . . . . . 2 . Recycled Matter . | . . . . . . . Retrieved Matter . | . . . . . . . Retrieved Components . | . . . . . . . Parts Scanalyzed . | . . . . . . . Part Schematics Acquired . | . . . . . . . Parts Damaged . | . . . . . . . Bothacking | -11 -10 -10 -10 -9 -8 -7 ------------ Run | Yrd Mat Min Exi Min Mat Fac Used RIF Installer . | . . . . . . . Robots Hacked . | . . . . . . . Non-combat . | . . . . . . . Combat . | . . . . . . . Robot Hacks Applied . | . . . . . . . Relay Couplers Released . | . . . . . . . Fabnet Peak Effective % . | . . . . . . . Robots Rewired . | . . . . . . . Allies Hacked . | . . . . . . . Hacks Repelled . | . . . . . . . Allies | -11 -10 -10 -10 -9 -8 -7 -------- Run | Yrd Mat Min Exi Min Mat Fac Total Allies 4 | . . . . 2 2 . Largest Group 3 | . . . . 2 3 . Highest-Rated Group 49 | . . . . 36 49 . Highest-Rated Ally 31 | . . . . 31 31 . Total Orders . | . . . . . . . Ally Attacks 16 | . . . . 2 14 . Total Damage 166 | . . . . 19 147 . Kills 3 | . . . . 1 2 . Allies Corrupted . | . . . . . . . Allies Melted . | . . . . . . . Field Lobotomies 3 | . . . . 1 2 . Intel | -11 -10 -10 -10 -9 -8 -7 ------- Run | Yrd Mat Min Exi Min Mat Fac Robot Analysis Total . | . . . . . . . Derelict Logs Recovered 2 | . . . . 2 . . Drone Launches 1 | . . . . . . 1 Drone Recoveries . | . . . . . . . Exploration | -11 -10 -10 -10 -9 -8 -7 ------------- Run | Yrd Mat Min Exi Min Mat Fac Turns Passed 3090 | 253 284 183 1202 373 355 440 Spaces Moved 2590 | 189 207 121 1160 292 321 300 Core 29 | 3 . . . . . 26 Treads . | . . . . . . . Legs . | . . . . . . . Wheels 2207 | 186 170 78 1160 292 321 . Hover 80 | . 37 43 . . . . Flight 274 | . . . . . . 274 Fastest Speed 25 | 50 80 95 95 110 80 25 Average Speed 97 | 86 105 123 100 110 86 76 Slowest Speed 300 | 100 300 176 110 110 95 272 Overloaded Moves . | . . . . . . . Propulsion Burnouts . | . . . . . . . Robots Hopped 1 | . . . . . . 1 Cave-ins Triggered . | . . . . . . . Time Travels 1 | . . . 1 . . . Exploration Rate (%) 34 | 8 40 21 93 48 21 7 Regions Visited 6 Branch Regions 3 Pre-discovered Areas 1 | . . . . 1 . . Known Exits Taken . | . . . . . . . Unknown Exits Taken 6 | 1 1 1 1 1 1 . Scrap Searched 1 | . . . . 1 . . Spaces Dug 12 | . . . 2 . 10 . Terrain Destroyed 152 | . 38 55 4 3 41 11 Melee . | . . . . . . . Projectile 11 | . . . 4 3 4 . AOE 141 | . 38 55 . . 37 11 Terrain Rammed . | . . . . . . . Walls Destroyed . | . . . . . . . Machines Disabled . | . . . . . . . Actions | -11 -10 -10 -10 -9 -8 -7 --------- Run | Yrd Mat Min Exi Min Mat Fac Total 2997 | 235 259 138 1192 339 372 462 Wait 167 | . 30 . . 24 29 84 Move 2582 | 188 206 120 1159 291 320 298 Hop 1 | . . . . . . 1 Pick Up 40 | 8 4 2 12 8 3 3 Fast Attach 24 | 7 4 1 2 . 1 9 Attach 17 | . 1 2 2 . 4 8 Detach 3 | . 1 1 . . . 1 Swap 8 | 4 1 1 . 1 1 . Drop 30 | 5 4 2 3 6 1 9 Fire 77 | 23 8 9 5 3 12 17 Melee . | . . . . . . . Ram 38 | . . . . 5 1 32 Kick . | . . . . . . . Crush . | . . . . . . . Escape Stasis . | . . . . . . . Rewire 10 | . . . 9 1 . . Trap . | . . . . . . . Miscellaneous . | . . . . . . . Route ------- -11/Scrapyard -10/Materials -10/Mines -10/Exiles (discovered 2 exits: [*Min x2]) -9/Mines (discovered 2 exits: *Mat x2) -8/Materials -7/Factory History --------- Turn | Location | Event 13 | -11/Scrapyard | Discovered new exit (range 16) 254 | -11/Scrapyard | Entered Materials 305 | -10/Materials | Build established: Mutant 447 | -10/Materials | Discovered new exit (range 13) 538 | -10/Materials | Entered Mines 539 | -10/Mines | Assembled infested the area 656 | -10/Mines | A weapon hastily lodged in a ceiling crevice suddenly fell to the ground 707 | -10/Mines | Deemed a non-threat by the Exiles lab entrance 715 | -10/Mines | Discovered new exit (range 5) 721 | -10/Mines | Entered Exiles 768 | -10/Exiles | Discovered new exit (range 15) 796 | -10/Exiles | Met 8R-AWN 831 | -10/Exiles | Met EX-HEX 904 | -10/Exiles | Met EX-DEC 981 | -10/Exiles | Visited The Gauntlet 1156 | -10/Exiles | Discovered new exit (range 10) 1261 | -10/Exiles | Met EX-BIN 1293 | -10/Exiles | Aligned with FarCom system 1294 | -10/Exiles | Given EX-Vault access code 1455 | -10/Exiles | Opened EX-Vault 1462 | -10/Exiles | Found Prototype Special Weapon 1465 | -10/Exiles | Identified Field Lobotomy Kit 1469 | -10/Exiles | Found Prototype Device 1475 | -10/Exiles | Found Prototype Device 1478 | -10/Exiles | Identified Chronowheel 1478 | -10/Exiles | Activated Chronowheel 1478 | -10/Exiles | Spacetime reconverged on an earlier point 1482 | -10/Exiles | Identified Supersonic Drone Bay 1548 | -10/Exiles | Warned to stay clear of 0b10 Research branches 1923 | -10/Exiles | Stole two prototypes: Field Lobotomy Kit, Supersonic Drone Bay 1923 | -10/Exiles | Entered Mines 1991 | -9/Mines | Met a Derelict bent on vengeance 2019 | -9/Mines | Assimilated S-10 Pest with FLK Orb 2187 | -9/Mines | Learned location of 1 exit from Proximity Caves 2206 | -9/Mines | Received a Mining Laser from a helpful Derelict 2265 | -9/Mines | Discovered new exit (range 10) 2287 | -9/Mines | Discovered new exit (range 8) 2296 | -9/Mines | Entered Materials 2296 | -8/Materials | Accompanied by 2 allies 2296 | -8/Materials | Evolved 4 slots: Power x1, Propulsion x3 2430 | -8/Materials | Assimilated Y-45 Defender with FLK Orb 2490 | -8/Materials | Assimilated G-47 Trooper with FLK Orb 2560 | -8/Materials | Lost 3 allies 2586 | -8/Materials | Build established: Scavenger-Mutant 2642 | -8/Materials | Discovered new exit (range 9) 2651 | -8/Materials | Entered Factory 2651 | -7/Factory | Evolved 2 slots: Propulsion x1, Weapon x1 2653 | -7/Factory | FarCom data flow suspended 2797 | -7/Factory | Core integrity fell below 50% 2847 | -7/Factory | Lost 8 parts (2p3n1u2w) 2929 | -7/Factory | Lost 3 parts (1p2n) 3038 | -7/Factory | Core integrity fell below 20% 3091 | -7/Factory | Destroyed by P-60 Hacker with Shock Rifle Last Messages --------------- 02989_ Current location identified: Factory 03005_ Xenon Bombardment Thruster destroyed. 03008_ VTOL Module destroyed. 03012_ Acquired Prototype Engine. 03013_ Identified Hvy. Deuterium Engine. 03030_ System corrupted: Heat flow error (+121). 03034_ Flight Unit destroyed. 03035_ Slammed into P-60 Hacker. 03040_ Hardlight Generator destroyed. 03041_ Slammed into P-60 Hacker. 03043_ Destabilizing: Core damaged (-14). 03043_ VTOL Module destroyed. 03045_ Slammed into P-60 Hacker. 03064_ Gauss Rifle destroyed. 03066_ Slammed into P-60 Hacker. 03070_ VTOL Module destroyed. 03072_ Slammed into P-60 Hacker. 03073_ Autogun destroyed. 03074_ Slammed into P-60 Hacker. 03085_ MJ6HEOV/URZKFDWCQH9HCBJ Map ----- +----------------------------------------------------+ | ???????????????????????# #????????? ?????????????? | | ???????????????????????# #???? #????????????????? | | ???????????????????????# #??"" #????????????????? | | ???????????????????????# # """ |#????????????????? | | ???????????????????????# + # ???????????????? | | ???????????????????????# # /# ???????????????? | | ???????????????????????# #?? ! # ???????????????? | | ???????????????????????# #????### #??????????????? | | ???????????????????????# #??????# #??????????????? | | ???????????????######### #??????# #??????????????? | | ????????????+ #??????# #?##########???? | | ???????????????####### #??????# #?# #???? | | ?????????????????????# ######## ### #???? | | ?????????????????????# # ] #???? | | ?????????????????????# # !#???? | | ?????????????????????# =/ / #???? | | ?????????????????????# =/ # """""" #???? | | ?????????????????????# """ / # """""" ????? | | ?????????????????????## """ # """"""?????? | | ??????????????????????# """ # """""??????? | | ??????????????????????# #######??????? | | ??????????????????????# #????????????? | | ??????????????????????# #????????????? | | ?????????????????????## p#######+#######????????? | | ?????????????????????+ # #????????? | | ?????????????????????## @# """ #????????? | | ??????????????????????# # """ #????????? | | ??????????????????????# # """ #????????? | | ??????????????????????# # ""T"" #????????? | | ?????????????????????? # """"" #????????? | | ?????????????????????## ###############????????? | | ??????????????????????# #??????????????????????? | | ??????????????????????# #??????????????????????? | | ??????????????????????^ ??????????????????????? | | ?????????????????????? ??????????????????????? | | ?????????????????????? ??????????????????????? | | ????????????????????? ??????????????????????? | | ????????????????????? ??????????????????????? | | ?????????????????????######??????????????????????? | | ?????????????????????????????????????????????????? | | ?????????????????????????????????????????????????? | | ?????????????????????????????????????????????????? | | ?????????????????????????????????????????????????? | | ?????????????????????????????????????????????????? | | ?????????????????????????????????????????????????? | | ?????????????????????????????????????????????????? | | ?????????????????????????????????????????????????? | | ?????????????????????????????????????????????????? | | ?????????????????????????????????????????????????? | | ?????????????????????????????????????????????????? | +----------------------------------------------------+ Best States ------------- Heat Dissipation 34 Energy Generation 19 Energy Capacity 375 Matter Stores 300 Matter Capacity 300 Sight Range 16 Terrain Scan Density 10 Evasion (%) 65 Item Schematics ----------------- None Robot Schematics ------------------ None Fabricated ------------ Nothing Alien Tech Used ----------------- None Achievements -------------- Backstab Fist Fight I Survived The Infestation Please Form A Line Challenges ------------ None Game ------ Seed HypercooledScrapConstruct Manual? 0 Play Time 00:44:05 Cumulative 3.8 hours Start 2024.05.22 @ 21:20:46 End 2024.05.23 @ 12:32:39 Sessions 1 Manual Loads 0 Difficulty Rogue Special Mode None Game No. 9 Rogue 9 Adventurer 0 Explorer 0 Win Type - Total 0 Types 0/0/0/0/0/0/0/0/0 Lore% 3 Gallery% 9 Achievement% 10 Wizard Run 0 Options --------- Layout 0 ASCII 0 Keyboard 0 Movement Arrows Keybinds 0 Fullscreen 1 Font 18/SmallcapsGlow Map View 38x25 Zoom Use 80% Tactical HUD 1 Map Filters NONE Filters NONE Steam 1 RUN: 3dbec32d-f957-4d08-96a2-53c50c1d81cd